fUST/lending_fUST_20260401
["ID","MTS","AMOUNT","RATE_DAILY","PERIOD"]
[419175512,1775004646674,-151.0,0.00021918,2]
[419175514,1775004646684,-151.0,0.00021918,2]
[419175516,1775004646693,-151.0,0.00021918,2]
[419175517,1775004646703,-460.52777,0.00021918,2]
[419175519,1775004646712,-460.52777,0.00021918,2]
[419175521,1775004646722,-460.52777,0.00021918,2]
[419175522,1775004646731,-460.52777,0.00021918,2]
[419175524,1775004646741,-460.52777,0.00021918,2]
[419175526,1775004646751,-460.52777,0.00021918,2]
[419175527,1775004646760,-247.017037,0.00021918,2]
[419175529,1775004646770,-460.52777,0.00021918,2]
[419175530,1775004646779,-460.52777,0.00021918,2]
[419175532,1775004646789,-151.0,0.00021918,2]
[419175534,1775004646798,-151.0,0.00021918,2]
[419175535,1775004646807,-151.0,0.00021918,2]
[419175537,1775004646817,-151.0,0.00021918,2]
[419175539,1775004646826,-151.0,0.00021918,2]
[419175540,1775004646835,-151.0,0.00021918,2]
[419175542,1775004646845,-151.0,0.00021918,2]
[419175543,1775004646854,-151.0,0.00021918,2]
[419175545,1775004646864,-151.0,0.00021918,2]
[419175547,1775004646873,-255.675924,0.00021918,2]
[419175548,1775004646883,-180.98207,0.00021918,2]
[419175550,1775004646893,-180.98207,0.00021918,2]
[419175552,1775004646903,-180.98207,0.00021918,2]
[419175553,1775004646912,-180.98207,0.00021918,2]
[419175555,1775004646921,-180.98207,0.00021918,2]
[419175556,1775004646930,-180.98207,0.00021918,2]
[419175558,1775004646940,-180.98207,0.00021918,2]
[419175560,1775004646949,-180.98207,0.00021918,2]
[419175561,1775004646958,-151.0,0.00021918,2]
[419175563,1775004646968,-151.0,0.00021918,2]
[419175564,1775004646977,-151.0,0.00021918,2]
[419175566,1775004646987,-151.0,0.00021918,2]
[419175568,1775004646996,-151.0,0.00021918,2]
[419175569,1775004647006,-151.0,0.00021918,2]
[419175571,1775004647016,-151.0,0.00021918,2]
[419175573,1775004647026,-151.0,0.00021918,2]
[419175574,1775004647035,-151.0,0.00021918,2]
[419175576,1775004647045,-151.0,0.00021918,2]
[419175577,1775004647054,-151.0,0.00021918,2]
[419175579,1775004647064,-151.0,0.00021918,2]
[419175581,1775004647073,-151.0,0.00021918,2]
[419175582,1775004647083,-151.0,0.00021918,2]
[419175584,1775004647093,-151.0,0.00021918,2]
[419175586,1775004647103,-204.752869,0.00021918,2]
[419175587,1775004647112,-204.752869,0.00021918,2]
[419175589,1775004647122,-204.752869,0.00021918,2]
[419175591,1775004647132,-204.752869,0.00021918,2]
[419175592,1775004647142,-204.752869,0.00021918,2]
[419175594,1775004647152,-204.752869,0.00021918,2]
[419175595,1775004647161,-892.397039,0.00021918,2]
[419175597,1775004647171,-204.752869,0.00021918,2]
[419175599,1775004647181,-892.397039,0.00021918,2]
[419175600,1775004647190,-204.752869,0.00021918,2]
[419175602,1775004647202,-892.397039,0.00021918,2]
[419175604,1775004647211,-892.397039,0.00021918,2]
[419175605,1775004647221,-892.397039,0.00021918,2]
[419175607,1775004647230,-892.397039,0.00021918,2]
[419175608,1775004647239,-892.397039,0.00021918,2]
[419175610,1775004647249,-892.397039,0.00021918,2]
[419175612,1775004647259,-443.588777,0.00021918,2]
[419175613,1775004647268,-443.588777,0.00021918,2]
[419175615,1775004647277,-443.588777,0.00021918,2]
[419175617,1775004647287,-443.588777,0.00021918,2]
[419175618,1775004647297,-443.588777,0.00021918,2]
[419175620,1775004647306,-443.588777,0.00021918,2]
[419175621,1775004647315,-443.588777,0.00021918,2]
[419175623,1775004647325,-443.588777,0.00021918,2]
[419175625,1775004647334,-151.0,0.00021918,2]
[419175626,1775004647343,-151.0,0.00021918,2]
[419175628,1775004647353,-604.488098,0.00021918,2]
[419175629,1775004647362,-604.488098,0.00021918,2]
[419175631,1775004647372,-604.488098,0.00021918,2]
[419175633,1775004647381,-604.488098,0.00021918,2]
[419175634,1775004647391,-604.488098,0.00021918,2]
[419175636,1775004647400,-604.488098,0.00021918,2]
[419175638,1775004647410,-604.488098,0.00021918,2]
[419175639,1775004647420,-604.488098,0.00021918,2]
[419175641,1775004647429,-604.488098,0.00021918,2]
[419175643,1775004647439,-151.0,0.00021918,2]
[419175644,1775004647448,-151.0,0.00021918,2]
[419175646,1775004647458,-151.0,0.00021918,2]
[419175647,1775004647468,-604.488098,0.00021918,2]
[419175649,1775004647477,-151.0,0.00021918,2]
[419175651,1775004647487,-151.0,0.00021918,2]
[419175652,1775004647497,-604.488098,0.00021918,2]
[419175654,1775004647506,-151.0,0.00021918,2]
[419175656,1775004647515,-604.488098,0.00021918,2]
[419175657,1775004647524,-151.0,0.00021918,2]
[419175659,1775004647534,-151.0,0.00021918,2]
[419175661,1775004647543,-151.0,0.00021918,2]
[419175662,1775004647552,-151.0,0.00021918,2]
[419175664,1775004647562,-151.0,0.00021918,2]
[419175666,1775004647571,-151.0,0.00021918,2]
[419175667,1775004647580,-151.0,0.00021918,2]
[419175669,1775004647590,-151.0,0.00021918,2]
[419175670,1775004647600,-151.0,0.00021918,2]
[419175672,1775004647610,-151.0,0.00021918,2]
[419175674,1775004647619,-151.0,0.00021918,2]
[419175675,1775004647630,-151.0,0.00021918,2]
[419175677,1775004647640,-151.0,0.00021918,2]
[419175679,1775004647649,-102.30688776,0.00021918,2]
[419176297,1775004654840,159.0,0.000328,120]
[419176569,1775004672910,160.0,0.000328,120]
[419176570,1775004698276,159.0,0.000328,120]
[419176573,1775004881107,500.0,0.00020727,120]
[419176574,1775004881361,500.0,0.00020727,120]
[419176576,1775004976023,1027.31,0.000326,120]
[419176580,1775005235349,5935.66943658,0.00027821,120]
[419176581,1775005235512,6722.46919446,0.00032711,120]
[419176582,1775005235789,6405.07839356,0.00029451,120]
[419176584,1775005328457,-5000.0,0.00013292,2]
[419176585,1775005328491,-5000.0,0.00013426,8]
[419176586,1775005328524,-300.0,0.00013561,2]
[419176587,1775005328547,-5000.0,0.00013562,2]
[419176588,1775005328561,-1000.0,0.00013699,2]
[419176589,1775005328573,-1051.64900049,0.00013809,2]
[419176590,1775005328584,-2148.52688337,0.00013909,2]
[419176591,1775005328595,-799.82411614,0.00014009,2]
[419176592,1775005328613,-300.0,0.00014009,2]
[419176593,1775005328631,-19.20861684,0.00014009,2]
[419176640,1775005833162,-566.58436175,6.327e-05,2]
[419176641,1775005833266,-1994.16217616,6.327e-05,2]
[419176642,1775005833276,-1796.28665652,6.427e-05,2]
[419176643,1775005833287,-3203.71334348,6.427e-05,2]
[419176644,1775005833297,-1200.0,6.49e-05,2]
[419176645,1775005833306,-199.0,6.491e-05,2]
[419176646,1775005833316,-300.0,6.491e-05,2]
[419176647,1775005833325,-300.0,6.491e-05,2]
[419176648,1775005833334,-300.0,6.491e-05,2]
[419176649,1775005833344,-5000.0,6.492e-05,2]
[419176650,1775005833353,-5000.0,6.558e-05,2]
[419176651,1775005833363,-164.386086,6.625e-05,2]
[419176652,1775005833373,-164.386086,7.039e-05,2]
[419176653,1775005833383,-1680.0,7.139e-05,2]
[419176654,1775005833393,-420.0,7.14e-05,2]
[419176655,1775005833402,-164.386086,7.453e-05,2]
[419176656,1775005833411,-2351.0,7.853e-05,2]
[419176657,1775005833421,-587.0,7.854e-05,2]
[419176658,1775005833430,-164.386086,7.867e-05,2]
[419176659,1775005833439,-164.386086,8.281e-05,2]
[419176660,1775005833449,-3292.0,8.638e-05,2]
[419176662,1775005833459,-823.0,8.64e-05,2]
[419176664,1775005833468,-164.386086,8.695e-05,2]
[419176666,1775005833477,-164.386086,9.109e-05,2]
[419176668,1775005833487,-3886.0,9.502e-05,2]
[419176670,1775005833496,-1152.0,9.503e-05,2]
[419176672,1775005833505,-164.386086,9.523e-05,2]
[419176673,1775005833514,-164.386086,9.937e-05,2]
[419176675,1775005833524,-164.386086,0.00010351,2]
[419176677,1775005833533,-1613.0,0.00010454,2]
[419176679,1775005833543,-164.386086,0.00010765,2]
[419176681,1775005833553,-164.386086,0.00011179,2]
[419176683,1775005833563,-2258.0,0.00011499,2]
[419176685,1775005833572,-164.386086,0.00011593,2]
[419176687,1775005833581,-164.386086,0.00012007,2]
[419176689,1775005833590,-164.386086,0.00012421,2]
[419176691,1775005833600,-335.44404759,0.000125,2]
[419176693,1775005833609,-3098.295637,0.00012649,2]
[419176914,1775005838326,-63.704363,0.00012649,2]
[419176916,1775005838336,-164.386086,0.00012835,2]
[419176918,1775005838345,-164.386086,0.00013249,2]
[419176920,1775005838354,-11733.7888297,0.0001341,2]
[419176922,1775005838365,-1000.0,0.00013699,2]
[419176924,1775005838374,-4427.0,0.00013914,2]
[419176926,1775005838384,-500.0,0.00014008,2]
[419176928,1775005838394,-1185.86983011,0.00014009,2]
[419176930,1775005838403,-2482.2715534,0.00014109,2]
[419176932,1775005838413,-2659.64054383,0.00014209,2]
[419176934,1775005838423,-2837.00953426,0.00014309,2]
[419176936,1775005838432,-809.91945874,0.0001478,2]
[419176938,1775005838445,-2204.45906595,0.0001478,2]
[419176940,1775005838455,-176.412453,0.00015068,2]
[419176942,1775005838464,-2784.0,0.00015305,2]
[419176944,1775005838474,-3191.74751511,0.0001641,5]
[419176946,1775005838483,-500.0,0.0001663,2]
[419176949,1775005838492,-500.0,0.0001663,2]
[419176952,1775005838502,-500.0,0.0001663,2]
[419176954,1775005838511,-516.77202769,0.0001663,2]
[419176956,1775005838521,-500.0,0.0001663,2]
[419176958,1775005838530,-500.0,0.0001663,2]
[419176960,1775005838540,-500.0,0.0001663,2]
[419176962,1775005838550,-500.0,0.0001663,2]
[419176964,1775005838560,-500.0,0.0001663,2]
[419176966,1775005838570,-500.0,0.0001663,2]
[419176968,1775005838579,-500.0,0.0001663,2]
[419176970,1775005838588,-500.0,0.0001663,2]
[419176972,1775005838598,-500.0,0.0001663,2]
[419176974,1775005838607,-500.0,0.0001663,2]
[419176976,1775005838617,-500.0,0.0001663,2]
[419176978,1775005838626,-500.0,0.0001663,2]
[419176981,1775005838636,-500.0,0.0001663,2]
[419176983,1775005838645,-500.0,0.0001663,2]
[419176985,1775005838654,-500.0,0.0001663,2]
[419176987,1775005838664,-500.0,0.0001663,2]
[419176989,1775005838673,-500.0,0.0001663,2]
[419176991,1775005838682,-249.55312512,0.0001663,2]
[419176993,1775005838691,-467.93222351,0.0001663,2]
[419176995,1775005838700,-500.0,0.0001663,2]
[419176996,1775005838709,-500.0,0.0001663,2]
[419176998,1775005838719,-500.0,0.0001663,2]
[419177000,1775005838727,-500.0,0.0001663,2]
[419177002,1775005838736,-500.0,0.0001663,2]
[419177004,1775005838745,-500.0,0.0001663,2]
[419177007,1775005838755,-500.0,0.0001663,2]
[419177009,1775005838764,-500.0,0.0001663,2]
[419177011,1775005838774,-500.0,0.0001663,2]
[419177012,1775005838783,-500.0,0.0001663,2]
[419177014,1775005838792,-500.0,0.0001663,2]
[419177016,1775005838801,-500.0,0.0001663,2]
[419177018,1775005838811,-500.0,0.0001663,2]
[419177020,1775005838820,-500.0,0.0001663,2]
[419177022,1775005838830,-500.0,0.0001663,2]
[419177024,1775005838839,-500.0,0.0001663,2]
[419177026,1775005838848,-500.0,0.0001663,2]
[419177028,1775005838857,-500.0,0.0001663,2]
[419177030,1775005838866,-500.0,0.0001663,2]
[419177032,1775005838876,-500.0,0.0001663,2]
[419177034,1775005838885,-500.0,0.0001663,2]
[419177036,1775005838896,-500.0,0.0001663,2]
[419177038,1775005838905,-500.0,0.0001663,2]
[419177040,1775005838915,-500.0,0.0001663,2]
[419177042,1775005838924,-500.0,0.0001663,2]
[419177044,1775005838933,-500.0,0.0001663,2]
[419177046,1775005838942,-500.0,0.0001663,2]
[419177048,1775005838951,-500.0,0.0001663,2]
[419177050,1775005838960,-3073.9614643,0.0001681,2]
[419177052,1775005838970,-500.0,0.00017873,2]
[419177054,1775005838982,-1000.0,0.00018421,2]
[419177056,1775005838991,-3073.9614643,0.00018812,2]
[419177058,1775005839000,-1000.0,0.00018968,2]
[419177060,1775005839011,-257.177545,0.00019654,2]
[419177062,1775005839020,-296.666895,0.00019669,2]
[419177064,1775005839030,-296.666895,0.00019669,2]
[419177066,1775005839039,-296.666895,0.00019669,2]
[419177068,1775005839049,-296.666895,0.00019669,2]
[419177069,1775005839058,-2721.91598602,0.0001967,22]
[419177241,1775005843502,-4295.0,0.00012523,2]
[419177254,1775005846695,-705.0,0.00012523,2]
[419177255,1775005846705,-1053.24570426,0.0001967,22]
[419177256,1775005846715,-1000.0,0.00019716,2]
[419177257,1775005846725,-318.8161308,0.00019783,2]
[419177258,1775005846735,-1446.05356713,0.00019959,2]
[419177259,1775005846774,-11.1145598,0.00019959,2]
[419177263,1775005998816,282.0,0.000324,120]
[419177264,1775006017574,1000.0,0.000324,120]
[419177289,1775006619519,-1000.0,0.00013699,2]
[419177290,1775006619544,-3036.57951475,0.00016965,2]
[419177291,1775006619570,-300.0,0.00017064,2]
[419177292,1775006619593,-300.0,0.00017065,2]
[419177293,1775006619617,-300.0,0.00017065,2]
[419177294,1775006619640,-300.0,0.00017065,2]
[419177295,1775006619664,-1094.0,0.00017065,2]
[419177296,1775006619687,-13696.7498003,0.00017066,2]
[419177297,1775006619709,-13696.7498003,0.00017066,2]
[419177298,1775006619731,-1007.7944598,0.00017066,2]
[419177299,1775006619753,-217.3718384,0.00017066,2]
[419177300,1775006619775,-5391.68359029,0.00017066,2]
[419177301,1775006619798,-1226.03486716,0.00018865,5]
[419177302,1775006619822,-253.29156451,0.00019407,2]
[419177303,1775006619845,-151.0,0.00019508,2]
[419177304,1775006619869,-151.0,0.00019508,2]
[419177305,1775006619891,-237.333516,0.00019508,2]
[419177306,1775006619913,-237.333516,0.00019508,2]
[419177307,1775006619938,-237.333516,0.00019508,2]
[419177308,1775006619962,-237.333516,0.00019508,2]
[419177309,1775006619987,-3767.809561,0.00019508,2]
[419177310,1775006620009,-3767.809561,0.00019508,2]
[419177311,1775006620033,-3767.809561,0.00019508,2]
[419177312,1775006620056,-3767.809561,0.00019508,2]
[419177313,1775006620177,-151.0,0.00019508,2]
[419177314,1775006620201,-151.0,0.00019508,2]
[419177315,1775006620224,-151.0,0.00019509,2]
[419177316,1775006620248,-270.292027,0.00019509,2]
[419177317,1775006620270,-237.333516,0.00019509,2]
[419177318,1775006620294,-237.333516,0.00019509,2]
[419177319,1775006620318,-237.333516,0.00019509,2]
[419177320,1775006620342,-237.333516,0.00019509,2]
[419177321,1775006620365,-237.333516,0.00019509,2]
[419177322,1775006620389,-237.333516,0.00019509,2]
[419177323,1775006620412,-237.333516,0.00019509,2]
[419177324,1775006620438,-237.333516,0.00019509,2]
[419177325,1775006620463,-3767.809561,0.00019509,2]
[419177326,1775006620487,-3767.809561,0.00019509,2]
[419177327,1775006620510,-3767.809561,0.00019509,2]
[419177328,1775006620533,-3767.809561,0.00019509,2]
[419177329,1775006620556,-3767.809561,0.00019509,2]
[419177330,1775006620581,-3767.809561,0.00019509,2]
[419177331,1775006620605,-3767.809561,0.00019509,2]
[419177332,1775006620629,-3767.809561,0.00019509,2]
[419177333,1775006620652,-151.0,0.00019509,2]
[419177334,1775006620675,-151.0,0.00019509,2]
[419177335,1775006620698,-151.0,0.00019509,2]
[419177336,1775006620722,-261.021922,0.00019509,2]
[419177337,1775006620746,-13696.7498003,0.00019509,2]
[419177338,1775006620771,-13696.7498003,0.00019509,2]
[419177339,1775006620794,-1007.7944598,0.00019557,2]
[419177340,1775006620816,-500.0,0.00019573,2]
[419177341,1775006620841,-500.0,0.00019573,2]
[419177342,1775006620863,-500.0,0.00019573,2]
[419177343,1775006620886,-501.86572305,0.00019573,2]
[419177344,1775006620909,-500.0,0.00019573,2]
[419177345,1775006620932,-500.0,0.00019573,2]
[419177346,1775006620953,-500.0,0.00019573,2]
[419177347,1775006620975,-500.0,0.00019573,2]
[419177348,1775006620997,-500.0,0.00019573,2]
[419177349,1775006621020,-3036.57951473,0.00019697,2]
[419177350,1775006621043,-198.53,0.00019907,3]
[419177351,1775006621066,-595.6,0.00019907,3]
[419177352,1775006621088,-166.58479254,0.0001992,2]
[419177353,1775006621111,-151.0,0.0001992,2]
[419177354,1775006621132,-162.380719,0.0001992,2]
[419177355,1775006621154,-151.0,0.0001992,2]
[419177356,1775006621176,-455.15620862,0.0001992,2]
[419177357,1775006621199,-151.0,0.0001992,2]
[419177358,1775006621223,-1957.856,0.0001992,2]
[419177359,1775006621245,-151.0,0.0001992,2]
[419177360,1775006621267,-151.0,0.0001992,2]
[419177361,1775006621290,-151.0,0.0001992,2]
[419177362,1775006621314,-599.60298507,0.0001992,2]
[419177363,1775006621336,-280.16173124,0.0001992,2]
[419177364,1775006621359,-151.0,0.0001992,2]
[419177365,1775006621383,-151.0,0.0001992,2]
[419177366,1775006621407,-151.0,0.0001992,2]
[419177367,1775006621429,-599.60298507,0.0001992,2]
[419177368,1775006621451,-151.0,0.0001992,2]
[419177369,1775006621474,-151.0,0.0001992,2]
[419177370,1775006621496,-151.0,0.0001992,2]
[419177371,1775006621519,-156.67664286,0.0001992,2]
[419177372,1775006621542,-151.0,0.0001992,2]
[419177373,1775006621565,-151.0,0.0001992,2]
[419177374,1775006621587,-155.97324395,0.0001992,2]
[419177375,1775006621611,-2398.4119403,0.0001992,2]
[419177376,1775006621632,-7021.61959167,0.00019959,2]
[419177377,1775006621655,-151.0,0.00019959,2]
[419177378,1775006621679,-237.333516,0.00019959,2]
[419177379,1775006621703,-237.333516,0.00019959,2]
[419177380,1775006621726,-237.333516,0.00019959,2]
[419177381,1775006621749,-237.333516,0.00019959,2]
[419177382,1775006621772,-3767.809561,0.00019959,2]
[419177383,1775006621794,-3767.809561,0.00019959,2]
[419177384,1775006621816,-3767.809561,0.00019959,2]
[419177385,1775006621840,-3767.809561,0.00019959,2]
[419177386,1775006621862,-151.0,0.00019959,2]
[419177387,1775006621886,-2030.296672,0.00019975,2]
[419177388,1775006621910,-621.78829552,0.00019975,2]
[419177389,1775006621932,-151.62389485,0.0002,2]
[419177546,1775006757073,100000.0,0.00032877,120]
[419177547,1775006773843,658.99,0.000328,120]
[419177548,1775006790573,1016.87,0.000326,120]
[419177549,1775006791552,1016.87,0.00032729,120]
[419177550,1775006792677,1016.87,0.00032857,120]
[419177594,1775007032545,-222.82035458,0.00013599,2]
[419177595,1775007032555,-614.0,0.00013599,2]
[419177596,1775007032564,-931.92764542,0.00013699,2]
[419177597,1775007032576,-68.07235458,0.00013699,2]
[419177598,1775007032589,-1200.0,0.0001896,2]
[419177599,1775007032599,-5000.0,0.00018961,2]
[419177600,1775007032610,-5000.0,0.00018961,2]
[419177601,1775007032620,-5000.0,0.00018961,2]
[419177602,1775007032631,-217.42762666,0.00018961,2]
[419177638,1775007046189,-4782.57237334,0.00018961,2]
[419177639,1775007046203,-5000.0,0.00018961,2]
[419177640,1775007046215,-151.0,0.00019509,2]
[419177641,1775007046227,-194.334059,0.00019509,2]
[419177642,1775007046241,-500.0,0.00019573,2]
[419177643,1775007046255,-500.0,0.00019573,2]
[419177644,1775007046269,-288.17005334,0.00019781,2]
[419177645,1775007046281,-300.0,0.00019892,2]
[419177646,1775007046291,-300.0,0.00019892,2]
[419177647,1775007046302,-2475.0963237,0.00019893,2]
[419177648,1775007046314,-154.701311,0.00019893,2]
[419177649,1775007046328,-4829.7900218,0.00019893,2]
[419177650,1775007046340,-151.0,0.00019921,2]
[419177651,1775007046350,-151.0,0.00019959,2]
[419177652,1775007046364,-1000.0,0.00020121,2]
[419177653,1775007046378,-500.0,0.00020121,2]
[419177654,1775007046391,-1000.0,0.00020121,2]
[419177655,1775007046403,-151.0,0.00020121,2]
[419177656,1775007046415,-1957.856,0.00020183,2]
[419177657,1775007046427,-599.60298507,0.00020183,2]
[419177658,1775007046438,-2398.4119403,0.00020183,2]
[419177659,1775007046449,-3767.809561,0.00020195,2]
[419177660,1775007046460,-3767.809561,0.00020195,2]
[419177661,1775007046471,-3767.809561,0.00020195,2]
[419177662,1775007046483,-3767.809567,0.00020195,2]
[419177663,1775007046494,-151.0,0.00020195,2]
[419177664,1775007046505,-2030.296672,0.00020238,2]
[419177665,1775007046517,-621.78829552,0.00020238,2]
[419177666,1775007046528,-2105.41764886,0.00020293,2]
[419177667,1775007046539,-644.79446246,0.00020293,2]
[419177668,1775007046551,-2183.31810187,0.00020348,2]
[419177669,1775007046563,-668.65185757,0.00020348,2]
[419177670,1775007046574,-151.97493871,0.00020367,2]
[419177671,1775007046585,-289.98438037,0.00020403,2]
[419177672,1775007046596,-693.3919763,0.00020403,2]
[419177673,1775007046607,-719.04747942,0.00020458,2]
[419177674,1775007046618,-500.0,0.00020464,2]
[419177675,1775007046629,-500.0,0.00020464,2]
[419177676,1775007046641,-564.71774461,0.00020464,2]
[419177677,1775007046653,-500.0,0.00020464,2]
[419177678,1775007046665,-500.0,0.00020464,2]
[419177679,1775007046676,-500.0,0.00020464,2]
[419177680,1775007046686,-500.0,0.00020464,2]
[419177681,1775007046696,-500.0,0.00020464,2]
[419177682,1775007046707,-500.0,0.00020464,2]
[419177683,1775007046716,-500.0,0.00020464,2]
[419177684,1775007046727,-500.0,0.00020464,2]
[419177685,1775007046737,-500.0,0.00020464,2]
[419177686,1775007046747,-500.0,0.00020464,2]
[419177687,1775007046758,-500.0,0.00020464,2]
[419177688,1775007046768,-500.0,0.00020464,2]
[419177689,1775007046778,-500.0,0.00020464,2]
[419177690,1775007046788,-500.0,0.00020464,2]
[419177691,1775007046798,-500.0,0.00020464,2]
[419177692,1775007046809,-500.0,0.00020464,2]
[419177693,1775007046819,-500.0,0.00020464,2]
[419177694,1775007046830,-500.0,0.00020464,2]
[419177695,1775007046840,-500.0,0.00020464,2]
[419177696,1775007046849,-500.0,0.00020464,2]
[419177697,1775007046859,-500.0,0.00020464,2]
[419177698,1775007046869,-500.0,0.00020464,2]
[419177699,1775007046879,-500.0,0.00020464,2]
[419177700,1775007046889,-500.0,0.00020464,2]
[419177701,1775007046898,-500.0,0.00020464,2]
[419177702,1775007046908,-500.0,0.00020464,2]
[419177703,1775007046918,-500.0,0.00020464,2]
[419177704,1775007046927,-500.0,0.00020464,2]
[419177705,1775007046937,-500.0,0.00020464,2]
[419177706,1775007046947,-500.0,0.00020464,2]
[419177707,1775007046957,-500.0,0.00020464,2]
[419177708,1775007047114,-500.0,0.00020464,2]
[419177709,1775007047129,-500.0,0.00020464,2]
[419177710,1775007047139,-500.0,0.00020464,2]
[419177711,1775007047148,-500.0,0.00020464,2]
[419177712,1775007047158,-642.71175108,0.00020464,2]
[419177713,1775007047167,-500.0,0.00020464,2]
[419177714,1775007047177,-500.0,0.00020464,2]
[419177715,1775007047187,-500.0,0.00020464,2]
[419177716,1775007047197,-500.0,0.00020464,2]
[419177717,1775007047206,-500.0,0.00020464,2]
[419177718,1775007047215,-500.0,0.00020464,2]
[419177719,1775007047224,-500.0,0.00020464,2]
[419177720,1775007047234,-500.0,0.00020464,2]
[419177721,1775007047244,-500.0,0.00020464,2]
[419177722,1775007047253,-500.0,0.00020464,2]
[419177723,1775007047264,-500.0,0.00020464,2]
[419177724,1775007047273,-500.0,0.00020464,2]
[419177725,1775007047284,-500.0,0.00020464,2]
[419177726,1775007047293,-500.0,0.00020464,2]
[419177727,1775007047303,-500.0,0.00020464,2]
[419177728,1775007047313,-500.0,0.00020464,2]
[419177729,1775007047323,-500.0,0.00020464,2]
[419177730,1775007047332,-500.0,0.00020464,2]
[419177731,1775007047342,-500.0,0.00020464,2]
[419177732,1775007047352,-500.0,0.00020464,2]
[419177733,1775007047362,-500.0,0.00020464,2]
[419177734,1775007047371,-500.0,0.00020464,2]
[419177735,1775007047381,-500.0,0.00020464,2]
[419177736,1775007047391,-500.0,0.00020464,2]
[419177737,1775007047400,-500.0,0.00020464,2]
[419177738,1775007047410,-500.0,0.00020464,2]
[419177739,1775007047419,-500.0,0.00020464,2]
[419177740,1775007047429,-500.0,0.00020464,2]
[419177741,1775007047438,-500.0,0.00020464,2]
[419177742,1775007047448,-500.0,0.00020464,2]
[419177743,1775007047459,-500.0,0.00020464,2]
[419177744,1775007047469,-263.55975076,0.00020464,2]
[419177745,1775007047479,-500.0,0.00020464,2]
[419177746,1775007047489,-500.0,0.00020464,2]
[419177747,1775007047498,-500.0,0.00020464,2]
[419177748,1775007047508,-500.0,0.00020464,2]
[419177749,1775007047518,-500.0,0.00020464,2]
[419177750,1775007047528,-592.14733912,0.00020464,2]
[419177751,1775007047537,-500.0,0.00020467,2]
[419177752,1775007047547,-200.0,0.00020468,2]
[419177753,1775007047556,-500.0,0.00020473,2]
[419177754,1775007047566,-500.0,0.00020473,2]
[419177755,1775007047576,-500.0,0.00020473,2]
[419177756,1775007047585,-500.0,0.00020473,2]
[419177757,1775007047595,-340.16313277,0.00020473,2]
[419177758,1775007047604,-502.66644665,0.00020473,2]
[419177759,1775007047613,-507.53351123,0.00020473,2]
[419177760,1775007047623,-500.37429636,0.00020473,2]
[419177761,1775007047632,-745.65223616,0.00020513,2]
[419177762,1775007047642,-773.2413689,0.00020568,2]
[419177763,1775007047651,-801.85129955,0.00020623,2]
[419177764,1775007047660,-1500.0,0.00020668,2]
[419177765,1775007047670,-1859.5541064,0.0002073,2]
[419177766,1775007047679,-500.0,0.0002073,2]
[419177767,1775007047688,-1859.5541064,0.0002073,2]
[419177768,1775007047698,-442.77808398,0.0002073,2]
[419177769,1775007047707,-500.0,0.0002073,2]
[419177770,1775007047716,-1859.5541064,0.0002073,2]
[419177771,1775007047725,-500.0,0.0002073,2]
[419177772,1775007047734,-1859.5541064,0.0002073,2]
[419177773,1775007047744,-624.74937612,0.0002073,2]
[419177774,1775007047764,-1234.80473028,0.0002073,2]
[419177775,1775007047774,-500.0,0.0002073,2]